[Event "*** Titled Tuesday Blitz"]
[Site "Chess.com"]
[Date "2020.04.21"]
[Round "7"]
[White "calin_dragomirescu"]
[Black "WonderChampion"]
[Result "1-0"]
[WhiteElo "2299"]
[BlackElo "1814"]
[TimeControl "180+1"]
[EndTime "11:23:01 PDT"]
[Termination "calin_dragomirescu won by checkmate"]

1. Nf3 {[%clk 0:03:00.9]} 1... d5 {[%clk 0:02:59]} 2. c4 {[%clk 0:03:00.8]} 2...
e6 {[%clk 0:02:57]} 3. g3 {[%clk 0:03:00.3]} 3... Nf6 {[%clk 0:02:54.7]} 4. Bg2
{[%clk 0:03:00.5]} 4... c6 {[%clk 0:02:48.6]} 5. O-O {[%clk 0:03:00]} 5... Bd6
{[%clk 0:02:42.8]} 6. d4 {[%clk 0:02:58.7]} 6... O-O {[%clk 0:02:40.5]} 7. Nc3
{[%clk 0:02:58.8]} 7... dxc4 {[%clk 0:02:40]} 8. Nd2 {[%clk 0:02:58.8]} 8... Bc7
{[%clk 0:02:32]} 9. Nxc4 {[%clk 0:02:57]} 9... Bd7 {[%clk 0:02:30.9]} 10. e4
{[%clk 0:02:56.4]} 10... Qe7 {[%clk 0:02:24.3]} 11. e5 {[%clk 0:02:55.3]} 11...
Nd5 {[%clk 0:02:23.2]} 12. Ne4 {[%clk 0:02:53.7]} 12... h6 {[%clk 0:02:14.7]}
13. h4 {[%clk 0:02:53.1]} 13... Na6 {[%clk 0:02:10]} 14. a3 {[%clk 0:02:51.7]}
14... b5 {[%clk 0:01:57.4]} 15. Ncd6 {[%clk 0:02:50]} 15... Bxd6 {[%clk
0:01:56.3]} 16. Nxd6 {[%clk 0:02:46.7]} 16... Nac7 {[%clk 0:01:54.2]} 17. Qh5
{[%clk 0:02:43.3]} 17... Kh7 {[%clk 0:01:42.6]} 18. Be4+ {[%clk 0:02:40.5]}
18... Kg8 {[%clk 0:01:34.6]} 19. Bxh6 {[%clk 0:02:24.5]} 19... gxh6 {[%clk
0:01:28.5]} 20. Qxh6 {[%clk 0:02:24.4]} 20... f5 {[%clk 0:01:21.4]} 21. exf6
{[%clk 0:02:18.2]} 21... Nxf6 {[%clk 0:01:19.6]} 22. Qg6+ {[%clk 0:02:06.9]}
22... Qg7 {[%clk 0:01:06.8]} 23. Rfe1 {[%clk 0:01:49.7]} 23... Qxg6 {[%clk
0:01:03.9]} 24. Bxg6 {[%clk 0:01:49.2]} 24... Ncd5 {[%clk 0:01:01.1]} 25. Ne4
{[%clk 0:01:41.7]} 25... Kg7 {[%clk 0:00:55]} 26. h5 {[%clk 0:01:36.3]} 26...
Kh6 {[%clk 0:00:51.6]} 27. Nc5 {[%clk 0:01:32.6]} 27... Nc7 {[%clk 0:00:37.2]}
28. Rac1 {[%clk 0:01:24.7]} 28... Rad8 {[%clk 0:00:29.6]} 29. Nxd7 {[%clk
0:01:23.1]} 29... Rxd7 {[%clk 0:00:26]} 30. Rxc6 {[%clk 0:01:22.9]} 30... Nxh5
{[%clk 0:00:23.6]} 31. Bxh5 {[%clk 0:01:21]} 31... Kxh5 {[%clk 0:00:22]} 32.
Rec1 {[%clk 0:01:15.4]} 32... Nd5 {[%clk 0:00:20.6]} 33. Rxe6 {[%clk 0:01:14.8]}
33... Rdf7 {[%clk 0:00:20]} 34. Re5+ {[%clk 0:01:14]} 34... Rf5 {[%clk
0:00:20.2]} 35. Rce1 {[%clk 0:01:10.8]} 35... Kg6 {[%clk 0:00:17.6]} 36. f4
{[%clk 0:01:07.9]} 36... Kg7 {[%clk 0:00:16.4]} 37. Rxf5 {[%clk 0:01:03.9]}
37... Rxf5 {[%clk 0:00:15.7]} 38. Re5 {[%clk 0:01:04]} 38... Rxe5 {[%clk
0:00:15.8]} 39. dxe5 {[%clk 0:01:04.4]} 39... Kg6 {[%clk 0:00:15.9]} 40. Kf2
{[%clk 0:01:04.7]} 40... Kf5 {[%clk 0:00:16.1]} 41. Kf3 {[%clk 0:01:05]} 41...
Ne7 {[%clk 0:00:15.8]} 42. g4+ {[%clk 0:01:05.3]} 42... Kg6 {[%clk 0:00:16]} 43.
Ke4 {[%clk 0:01:03.2]} 43... Nc6 {[%clk 0:00:15.1]} 44. b4 {[%clk 0:00:58.9]}
44... a5 {[%clk 0:00:13.7]} 45. bxa5 {[%clk 0:00:57.5]} 45... Nxa5 {[%clk
0:00:14.6]} 46. Kd5 {[%clk 0:00:56.8]} 46... Nc4 {[%clk 0:00:13.5]} 47. f5+
{[%clk 0:00:57.1]} 47... Kf7 {[%clk 0:00:12.7]} 48. g5 {[%clk 0:00:55.1]} 48...
Nxa3 {[%clk 0:00:11.8]} 49. g6+ {[%clk 0:00:55.2]} 49... Kg7 {[%clk 0:00:11.6]}
50. e6 {[%clk 0:00:53.4]} 50... Kf6 {[%clk 0:00:10]} 51. Kd6 {[%clk 0:00:50.1]}
51... Nc4+ {[%clk 0:00:10.3]} 52. Kd7 {[%clk 0:00:50.4]} 52... b4 {[%clk
0:00:10.2]} 53. g7 {[%clk 0:00:47]} 53... Ne5+ {[%clk 0:00:10]} 54. Kd6 {[%clk
0:00:44]} 54... Nc4+ {[%clk 0:00:10]} 55. Kc5 {[%clk 0:00:42.8]} 55... Kxg7
{[%clk 0:00:06.7]} 56. Kxc4 {[%clk 0:00:43.1]} 56... b3 {[%clk 0:00:07.4]} 57.
Kxb3 {[%clk 0:00:43.1]} 57... Kf6 {[%clk 0:00:08.3]} 58. Kc4 {[%clk 0:00:43.3]}
58... Kxf5 {[%clk 0:00:08.3]} 59. e7 {[%clk 0:00:43.1]} 59... Ke4 {[%clk
0:00:08.6]} 60. e8=Q+ {[%clk 0:00:42.9]} 60... Kf4 {[%clk 0:00:09.1]} 61. Kd4
{[%clk 0:00:42.8]} 61... Kf3 {[%clk 0:00:10]} 62. Qe3+ {[%clk 0:00:42.3]} 62...
Kg4 {[%clk 0:00:09.8]} 63. Qf2 {[%clk 0:00:42]} 63... Kg5 {[%clk 0:00:10.7]} 64.
Ke5 {[%clk 0:00:42.3]} 64... Kg4 {[%clk 0:00:10.3]} 65. Qf4+ {[%clk 0:00:41.6]}
65... Kh5 {[%clk 0:00:10]} 66. Qg3 {[%clk 0:00:41.4]} 66... Kh6 {[%clk
0:00:09.6]} 67. Kf6 {[%clk 0:00:41.5]} 67... Kh7 {[%clk 0:00:10.5]} 68. Qg7#
{[%clk 0:00:41.4]} 1-0

[Event "*** Titled Tuesday Blitz"]
[Site "Chess.com"]
[Date "2020.04.21"]
[Round "7"]
[White "bazar-wokzal"]
[Black "Camels1981"]
[Result "1-0"]
[WhiteElo "2536"]
[BlackElo "2099"]
[TimeControl "180+1"]
[EndTime "11:23:02 PDT"]
[Termination "bazar-wokzal won on time"]

1. e4 {[%clk 0:03:00.9]} 1... c5 {[%clk 0:02:57.9]} 2. c3 {[%clk 0:03:00.4]}
2... d5 {[%clk 0:02:56.9]} 3. exd5 {[%clk 0:03:00.4]} 3... Qxd5 {[%clk
0:02:57.4]} 4. d4 {[%clk 0:03:00.6]} 4... Nc6 {[%clk 0:02:56.4]} 5. Nf3 {[%clk
0:03:00.1]} 5... Bf5 {[%clk 0:02:56.1]} 6. dxc5 {[%clk 0:02:54.2]} 6... Qxd1+
{[%clk 0:02:54.6]} 7. Kxd1 {[%clk 0:02:53.6]} 7... O-O-O+ {[%clk 0:02:54.9]} 8.
Ke1 {[%clk 0:02:46.9]} 8... e5 {[%clk 0:02:55.3]} 9. Be3 {[%clk 0:02:46.3]} 9...
Nf6 {[%clk 0:02:53.2]} 10. Bb5 {[%clk 0:02:45.2]} 10... Ng4 {[%clk 0:02:35.4]}
11. Bxc6 {[%clk 0:02:39.1]} 11... bxc6 {[%clk 0:02:34.3]} 12. b4 {[%clk
0:02:38.8]} 12... a5 {[%clk 0:02:16.3]} 13. a3 {[%clk 0:02:37.3]} 13... g6
{[%clk 0:02:00.6]} 14. Nbd2 {[%clk 0:02:32.6]} 14... Bg7 {[%clk 0:01:56.9]} 15.
Nc4 {[%clk 0:02:28.8]} 15... Rd3 {[%clk 0:01:53.2]} 16. Rc1 {[%clk 0:02:20]}
16... Kc7 {[%clk 0:01:52.3]} 17. Ke2 {[%clk 0:02:09.2]} 17... axb4 {[%clk
0:01:49.8]} 18. axb4 {[%clk 0:02:06.7]} 18... Ra8 {[%clk 0:01:49.2]} 19. Rhd1
{[%clk 0:01:49.2]} 19... Ra2+ {[%clk 0:01:48.1]} 20. Rd2 {[%clk 0:01:49.2]}
20... Rdxd2+ {[%clk 0:01:36.2]} 21. Bxd2 {[%clk 0:01:48.7]} 21... Be6 {[%clk
0:01:32]} 22. Nd6 {[%clk 0:01:41.8]} 22... e4 {[%clk 0:01:19.1]} 23. Nxe4 {[%clk
0:01:34.9]} 23... Bc4+ {[%clk 0:01:18.9]} 24. Ke1 {[%clk 0:01:34.3]} 24... Bd3
{[%clk 0:01:13.8]} 25. Bf4+ {[%clk 0:01:28.2]} 25... Kd7 {[%clk 0:01:00]} 26.
Ned2 {[%clk 0:01:10.7]} 26... Bxc3 {[%clk 0:00:56.8]} 27. Rxc3 {[%clk
0:01:04.6]} 27... Ra1+ {[%clk 0:00:55.9]} 28. Nb1 {[%clk 0:01:04.5]} 28... Rxb1+
{[%clk 0:00:55.9]} 29. Kd2 {[%clk 0:01:04.5]} 29... Bb5 {[%clk 0:00:45.8]} 30.
Bg3 {[%clk 0:00:57.1]} 30... Rxb4 {[%clk 0:00:44.8]} 31. h3 {[%clk 0:00:57.1]}
31... Nf6 {[%clk 0:00:40.8]} 32. Ra3 {[%clk 0:00:50.4]} 32... Ne4+ {[%clk
0:00:39.6]} 33. Ke3 {[%clk 0:00:50.2]} 33... Nxg3 {[%clk 0:00:35.7]} 34. fxg3
{[%clk 0:00:50.2]} 34... Ra4 {[%clk 0:00:19.6]} 35. Rxa4 {[%clk 0:00:40.3]}
35... Bxa4 {[%clk 0:00:19]} 36. Ng5 {[%clk 0:00:40.7]} 36... f6 {[%clk
0:00:18.6]} 37. Nxh7 {[%clk 0:00:40.6]} 37... Ke7 {[%clk 0:00:18.8]} 38. g4
{[%clk 0:00:40.3]} 38... Kf7 {[%clk 0:00:18.6]} 39. g5 {[%clk 0:00:39.9]} 39...
fxg5 {[%clk 0:00:17.3]} 40. Nxg5+ {[%clk 0:00:39.7]} 40... Kf6 {[%clk
0:00:17.4]} 41. Kf4 {[%clk 0:00:39.9]} 41... Bb3 {[%clk 0:00:16.4]} 42. h4
{[%clk 0:00:39.7]} 42... Bd5 {[%clk 0:00:15.9]} 43. g4 {[%clk 0:00:39.8]} 43...
Bg2 {[%clk 0:00:13.3]} 44. Ne4+ {[%clk 0:00:37.3]} 44... Ke6 {[%clk 0:00:13]}
45. Nc3 {[%clk 0:00:33.3]} 45... Bf1 {[%clk 0:00:11.8]} 46. Kg5 {[%clk
0:00:32.8]} 46... Kf7 {[%clk 0:00:11.1]} 47. Ne4 {[%clk 0:00:28.5]} 47... Bd3
{[%clk 0:00:10.7]} 48. Nf6 {[%clk 0:00:24.7]} 48... Ke6 {[%clk 0:00:09]} 49. h5
{[%clk 0:00:18.8]} 49... gxh5 {[%clk 0:00:08.4]} 50. gxh5 {[%clk 0:00:19.1]}
50... Ke5 {[%clk 0:00:08.8]} 51. h6 {[%clk 0:00:19.1]} 51... Kd4 {[%clk
0:00:08.8]} 52. Nd7 {[%clk 0:00:16.9]} 52... Kd5 {[%clk 0:00:08.8]} 53. Nf8
{[%clk 0:00:16.6]} 53... Kxc5 {[%clk 0:00:08.1]} 54. Ng6 {[%clk 0:00:16.6]} 1-0

[Event "*** Titled Tuesday Blitz"]
[Site "Chess.com"]
[Date "2020.04.21"]
[Round "7"]
[White "imdarealist"]
[Black "LuckSlayeer"]
[Result "0-1"]
[WhiteElo "2317"]
[BlackElo "2507"]
[TimeControl "180+1"]
[EndTime "11:23:03 PDT"]
[Termination "LuckSlayeer won on time"]

1. d4 {[%clk 0:03:00.9]} 1... Nf6 {[%clk 0:02:57.4]} 2. Bf4 {[%clk 0:03:00]}
2... e6 {[%clk 0:02:55.7]} 3. e3 {[%clk 0:02:59.3]} 3... b6 {[%clk 0:02:55.7]}
4. Nf3 {[%clk 0:02:58.2]} 4... Bb7 {[%clk 0:02:55.8]} 5. Be2 {[%clk 0:02:58.2]}
5... Be7 {[%clk 0:02:55.4]} 6. h3 {[%clk 0:02:51.4]} 6... O-O {[%clk 0:02:55.2]}
7. O-O {[%clk 0:02:51.5]} 7... d6 {[%clk 0:02:53.6]} 8. c4 {[%clk 0:02:49.9]}
8... Nbd7 {[%clk 0:02:53.3]} 9. Nc3 {[%clk 0:02:49.4]} 9... Re8 {[%clk
0:02:51.9]} 10. Bh2 {[%clk 0:02:43.5]} 10... Nf8 {[%clk 0:02:50.4]} 11. a4
{[%clk 0:02:38.9]} 11... a5 {[%clk 0:02:47.9]} 12. Qc2 {[%clk 0:02:30.8]} 12...
Ng6 {[%clk 0:02:46]} 13. Rfd1 {[%clk 0:02:28.5]} 13... Qb8 {[%clk 0:02:38]} 14.
e4 {[%clk 0:02:18.5]} 14... Bc6 {[%clk 0:02:29.4]} 15. d5 {[%clk 0:02:09.4]}
15... Bd7 {[%clk 0:02:26.4]} 16. Nb5 {[%clk 0:02:05.9]} 16... e5 {[%clk
0:02:20.7]} 17. Rac1 {[%clk 0:02:01.8]} 17... Nh5 {[%clk 0:02:19.4]} 18. Nxe5
{[%clk 0:01:57.1]} 18... dxe5 {[%clk 0:02:11.2]} 19. Bxh5 {[%clk 0:01:56.7]}
19... Nf4 {[%clk 0:02:10.6]} 20. Bxf4 {[%clk 0:01:37.3]} 20... exf4 {[%clk
0:02:11.5]} 21. e5 {[%clk 0:01:38]} 21... Bc5 {[%clk 0:02:10.1]} 22. e6 {[%clk
0:01:33.9]} 22... fxe6 {[%clk 0:01:56.3]} 23. Bxe8 {[%clk 0:01:32.8]} 23... Bxe8
{[%clk 0:01:52.9]} 24. dxe6 {[%clk 0:01:32.6]} 24... f3 {[%clk 0:01:45.6]} 25.
Qe4 {[%clk 0:01:20.9]} 25... c6 {[%clk 0:01:28.8]} 26. Nd4 {[%clk 0:01:15.7]}
26... fxg2 {[%clk 0:01:27.5]} 27. Qxg2 {[%clk 0:00:53.8]} 27... Qf4 {[%clk
0:01:18.3]} 28. Ne2 {[%clk 0:00:39.5]} 28... Qf6 {[%clk 0:01:17.9]} 29. b3
{[%clk 0:00:35.4]} 29... Qxe6 {[%clk 0:01:17]} 30. Nf4 {[%clk 0:00:34.8]} 30...
Qf6 {[%clk 0:01:15.7]} 31. Nd3 {[%clk 0:00:31.4]} 31... Bd4 {[%clk 0:01:13.8]}
32. Re1 {[%clk 0:00:29.3]} 32... Bh5 {[%clk 0:01:09.4]} 33. Qg3 {[%clk
0:00:21.3]} 33... Rf8 {[%clk 0:01:01]} 34. Rc2 {[%clk 0:00:21.4]} 34... Bg6
{[%clk 0:00:59.9]} 35. Ree2 {[%clk 0:00:21.7]} 35... c5 {[%clk 0:00:52.8]} 36.
Rcd2 {[%clk 0:00:20.8]} 36... Bh5 {[%clk 0:00:46.1]} 37. Re1 {[%clk 0:00:19.6]}
37... Bc3 {[%clk 0:00:45.4]} 38. Red1 {[%clk 0:00:19.3]} 38... Bxd2 {[%clk
0:00:30.9]} 39. Rxd2 {[%clk 0:00:19.8]} 39... Bf3 {[%clk 0:00:30.9]} 40. Qe5
{[%clk 0:00:02.7]} 40... Qg6+ {[%clk 0:00:27.5]} 41. Qg3 {[%clk 0:00:03]} 41...
Qh6 {[%clk 0:00:21.4]} 42. Rb2 {[%clk 0:00:01.3]} 42... Be4 {[%clk 0:00:18.6]}
43. Ne1 {[%clk 0:00:01.1]} 43... Qc1 {[%clk 0:00:17.5]} 44. Re2 {[%clk
0:00:01.2]} 44... Bc6 {[%clk 0:00:11.7]} 45. Re3 {[%clk 0:00:01.7]} 45... g6
{[%clk 0:00:10.1]} 46. Re7 {[%clk 0:00:02.4]} 46... Qd2 {[%clk 0:00:06.5]} 47.
Qh4 {[%clk 0:00:02.2]} 47... h5 {[%clk 0:00:04.8]} 48. Qg3 {[%clk 0:00:02.3]}
48... g5 {[%clk 0:00:02.9]} 49. h4 {[%clk 0:00:01.2]} 49... g4 {[%clk 0:00:03]}
50. Re3 {[%clk 0:00:01.1]} 50... Qd4 {[%clk 0:00:02.8]} 0-1

[Event "*** Titled Tuesday Blitz"]
[Site "Chess.com"]
[Date "2020.04.21"]
[Round "7"]
[White "Nafania1"]
[Black "Zoffy13"]
[Result "1/2-1/2"]
[WhiteElo "2349"]
[BlackElo "2213"]
[TimeControl "180+1"]
[EndTime "11:23:04 PDT"]
[Termination "Game drawn - insufficient material"]

1. e4 {[%clk 0:03:00.9]} 1... c5 {[%clk 0:02:58.9]} 2. Nf3 {[%clk 0:03:00.7]}
2... d6 {[%clk 0:02:59.3]} 3. Bb5+ {[%clk 0:03:00.3]} 3... Nd7 {[%clk
0:02:58.7]} 4. c3 {[%clk 0:02:59.5]} 4... Nf6 {[%clk 0:02:56.2]} 5. Bd3 {[%clk
0:02:59.1]} 5... Ne5 {[%clk 0:02:40.9]} 6. Bc2 {[%clk 0:02:57.2]} 6... Bg4
{[%clk 0:02:38.9]} 7. Ba4+ {[%clk 0:02:56.6]} 7... Nfd7 {[%clk 0:02:37.4]} 8. d4
{[%clk 0:02:51.8]} 8... cxd4 {[%clk 0:02:33.3]} 9. cxd4 {[%clk 0:02:50.8]} 9...
Nxf3+ {[%clk 0:02:17.8]} 10. gxf3 {[%clk 0:02:50.8]} 10... Bh5 {[%clk
0:02:14.1]} 11. Nc3 {[%clk 0:02:47.7]} 11... a6 {[%clk 0:02:12.8]} 12. Be3
{[%clk 0:02:40.7]} 12... e6 {[%clk 0:02:06.5]} 13. Rg1 {[%clk 0:02:39.3]} 13...
b5 {[%clk 0:01:57.5]} 14. Bb3 {[%clk 0:02:38.1]} 14... Be7 {[%clk 0:01:57.4]}
15. Qe2 {[%clk 0:02:14.1]} 15... Nf6 {[%clk 0:01:45.2]} 16. e5 {[%clk
0:01:59.7]} 16... dxe5 {[%clk 0:01:34.6]} 17. dxe5 {[%clk 0:01:59.4]} 17... Nd7
{[%clk 0:01:34.9]} 18. O-O-O {[%clk 0:01:51.3]} 18... Qc7 {[%clk 0:01:34.7]} 19.
Kb1 {[%clk 0:01:45.6]} 19... Qxe5 {[%clk 0:01:00.9]} 20. Qd2 {[%clk 0:01:21]}
20... Rd8 {[%clk 0:00:51.1]} 21. Bd4 {[%clk 0:01:17.1]} 21... Qf5+ {[%clk
0:00:46.8]} 22. Bc2 {[%clk 0:01:16.8]} 22... Qxf3 {[%clk 0:00:46.8]} 23. Bxg7
{[%clk 0:01:08.2]} 23... Rg8 {[%clk 0:00:46.9]} 24. Bd4 {[%clk 0:01:07.3]} 24...
Rxg1 {[%clk 0:00:35.8]} 25. Rxg1 {[%clk 0:01:06.6]} 25... Bg6 {[%clk 0:00:36.4]}
26. Bxg6 {[%clk 0:00:59]} 26... hxg6 {[%clk 0:00:37.3]} 27. Be3 {[%clk
0:00:50.4]} 27... Ne5 {[%clk 0:00:34.3]} 28. Qc2 {[%clk 0:00:49.4]} 28... Nc4
{[%clk 0:00:33.9]} 29. Bc1 {[%clk 0:00:46.3]} 29... Bf6 {[%clk 0:00:31.4]} 30.
Ne4 {[%clk 0:00:45.5]} 30... Be7 {[%clk 0:00:27.5]} 31. a4 {[%clk 0:00:42.8]}
31... Rd4 {[%clk 0:00:21.8]} 32. Ng5 {[%clk 0:00:32.2]} 32... Qd3 {[%clk
0:00:20.4]} 33. axb5 {[%clk 0:00:29.3]} 33... axb5 {[%clk 0:00:19.8]} 34. Qxd3
{[%clk 0:00:29]} 34... Rxd3 {[%clk 0:00:20.7]} 35. f4 {[%clk 0:00:26.3]} 35...
Rd5 {[%clk 0:00:19.4]} 36. h4 {[%clk 0:00:25.5]} 36... Nd6 {[%clk 0:00:18.6]}
37. Rg3 {[%clk 0:00:24.7]} 37... Nf5 {[%clk 0:00:19.1]} 38. Rh3 {[%clk
0:00:23.6]} 38... Rd1 {[%clk 0:00:19.4]} 39. Kc2 {[%clk 0:00:23.5]} 39... Rf1
{[%clk 0:00:19]} 40. h5 {[%clk 0:00:23.6]} 40... gxh5 {[%clk 0:00:19.3]} 41.
Rxh5 {[%clk 0:00:23.8]} 41... Bf6 {[%clk 0:00:18.5]} 42. Rh3 {[%clk 0:00:22.3]}
42... Nd4+ {[%clk 0:00:16.5]} 43. Kb1 {[%clk 0:00:19.6]} 43... Ne2 {[%clk
0:00:16.3]} 44. Kc2 {[%clk 0:00:17.6]} 44... Nxc1 {[%clk 0:00:14.6]} 45. Ne4
{[%clk 0:00:15]} 45... Ne2 {[%clk 0:00:14.7]} 46. Nxf6+ {[%clk 0:00:14.6]} 46...
Ke7 {[%clk 0:00:13.5]} 47. Ne4 {[%clk 0:00:14.3]} 47... Nd4+ {[%clk 0:00:13]}
48. Kd3 {[%clk 0:00:13.9]} 48... Nf5 {[%clk 0:00:12.7]} 49. Rh8 {[%clk
0:00:12.9]} 49... Rxf4 {[%clk 0:00:12.5]} 50. Rb8 {[%clk 0:00:12]} 50... Rf3+
{[%clk 0:00:12.4]} 51. Kd2 {[%clk 0:00:11.5]} 51... Re3 {[%clk 0:00:12.5]} 52.
Rb7+ {[%clk 0:00:11.4]} 52... Kf8 {[%clk 0:00:12]} 53. Ng5 {[%clk 0:00:11]}
53... Rb3 {[%clk 0:00:12.6]} 54. Rxf7+ {[%clk 0:00:10.3]} 54... Ke8 {[%clk
0:00:13.3]} 55. Rb7 {[%clk 0:00:10.1]} 55... Rxb2+ {[%clk 0:00:13.4]} 56. Kc3
{[%clk 0:00:10.1]} 56... Rb1 {[%clk 0:00:13.5]} 57. Nxe6 {[%clk 0:00:10.1]}
57... Rc1+ {[%clk 0:00:12.4]} 58. Kd2 {[%clk 0:00:09.9]} 58... Rb1 {[%clk
0:00:12]} 59. Nc7+ {[%clk 0:00:09.3]} 59... Kd8 {[%clk 0:00:10.9]} 60. Rxb5
{[%clk 0:00:09.3]} 60... Rxb5 {[%clk 0:00:10.6]} 61. Nxb5 {[%clk 0:00:09.4]}
1/2-1/2

[Event "*** Titled Tuesday Blitz"]
[Site "Chess.com"]
[Date "2020.04.21"]
[Round "7"]
[White "fridaywins"]
[Black "Vamostodorecto"]
[Result "1-0"]
[WhiteElo "2322"]
[BlackElo "2473"]
[TimeControl "180+1"]
[EndTime "11:23:05 PDT"]
[Termination "fridaywins won on time"]

1. e4 {[%clk 0:03:00.9]} 1... e5 {[%clk 0:02:59.2]} 2. Nf3 {[%clk 0:03:00.4]}
2... Nc6 {[%clk 0:02:59.6]} 3. Bb5 {[%clk 0:02:59.9]} 3... a6 {[%clk 0:02:59.2]}
4. Ba4 {[%clk 0:02:59.4]} 4... Nf6 {[%clk 0:02:59]} 5. O-O {[%clk 0:02:59.5]}
5... Be7 {[%clk 0:02:59.2]} 6. Re1 {[%clk 0:02:59.7]} 6... b5 {[%clk 0:02:58.4]}
7. Bb3 {[%clk 0:02:59.7]} 7... d6 {[%clk 0:02:59.2]} 8. c3 {[%clk 0:02:59.8]}
8... O-O {[%clk 0:02:59.3]} 9. h3 {[%clk 0:03:00]} 9... Na5 {[%clk 0:02:59.8]}
10. Bc2 {[%clk 0:03:00.1]} 10... c5 {[%clk 0:03:00.5]} 11. d4 {[%clk 0:03:00.4]}
11... Nd7 {[%clk 0:03:00.9]} 12. d5 {[%clk 0:02:59]} 12... Nb6 {[%clk
0:02:59.8]} 13. Nbd2 {[%clk 0:02:57.2]} 13... g6 {[%clk 0:02:59.2]} 14. Nf1
{[%clk 0:02:56]} 14... f5 {[%clk 0:02:59.1]} 15. Bh6 {[%clk 0:02:55.8]} 15...
Rf7 {[%clk 0:02:57.4]} 16. exf5 {[%clk 0:02:54]} 16... gxf5 {[%clk 0:02:56.2]}
17. Ng3 {[%clk 0:02:53.8]} 17... Kh8 {[%clk 0:02:40.6]} 18. Nh2 {[%clk
0:02:42.1]} 18... Qg8 {[%clk 0:02:36.7]} 19. Qh5 {[%clk 0:02:26.1]} 19... f4
{[%clk 0:02:06.2]} 20. Ne4 {[%clk 0:02:25.4]} 20... Nxd5 {[%clk 0:02:00.4]} 21.
Rad1 {[%clk 0:02:13.4]} 21... Nf6 {[%clk 0:01:41]} 22. Nxf6 {[%clk 0:02:12.4]}
22... Rxf6 {[%clk 0:01:41.9]} 23. Bg5 {[%clk 0:02:11.5]} 23... Rf7 {[%clk
0:01:29.6]} 24. Bxe7 {[%clk 0:02:11.2]} 24... Rxe7 {[%clk 0:01:30.5]} 25. Rxd6
{[%clk 0:02:11.5]} 25... Nc4 {[%clk 0:01:22.7]} 26. Rg6 {[%clk 0:02:10.6]} 26...
Qe8 {[%clk 0:01:06.9]} 27. Qh6 {[%clk 0:01:52]} 27... Raa7 {[%clk 0:00:54.7]}
28. Rf6 {[%clk 0:01:38.9]} 28... Rf7 {[%clk 0:00:21.4]} 29. b3 {[%clk
0:01:28.6]} 29... Na3 {[%clk 0:00:19.3]} 30. Bxh7 {[%clk 0:01:24.6]} 30... Rxf6
{[%clk 0:00:18.9]} 31. Qxf6+ {[%clk 0:01:24.7]} 31... Kxh7 {[%clk 0:00:18.3]}
32. Rxe5 {[%clk 0:01:25.6]} 32... Qg6 {[%clk 0:00:17]} 33. Qxf4 {[%clk
0:01:14.8]} 33... Rg7 {[%clk 0:00:15.3]} 34. Ng4 {[%clk 0:01:08.9]} 34... Bxg4
{[%clk 0:00:14.6]} 35. hxg4 {[%clk 0:01:09]} 35... Qxg4 {[%clk 0:00:15.5]} 36.
Qxg4 {[%clk 0:01:07.5]} 36... Rxg4 {[%clk 0:00:15.3]} 37. Rxc5 {[%clk
0:01:05.6]} 37... Rg6 {[%clk 0:00:13]} 38. g3 {[%clk 0:01:04.7]} 38... Rd6
{[%clk 0:00:12.2]} 39. Kg2 {[%clk 0:01:05.6]} 39... Nb1 {[%clk 0:00:11.4]} 40.
c4 {[%clk 0:01:05]} 40... b4 {[%clk 0:00:10.7]} 41. Ra5 {[%clk 0:01:02.9]} 41...
Nc3 {[%clk 0:00:09.8]} 42. a3 {[%clk 0:01:02.5]} 42... bxa3 {[%clk 0:00:07.2]}
43. Rxa3 {[%clk 0:01:03.4]} 43... Ne4 {[%clk 0:00:06.7]} 44. b4 {[%clk 0:01:02]}
44... Nd2 {[%clk 0:00:05.1]} 45. c5 {[%clk 0:01:00.5]} 45... Rc6 {[%clk
0:00:05]} 46. Rd3 {[%clk 0:01:00.4]} 46... Nc4 {[%clk 0:00:04.5]} 47. Rd4 {[%clk
0:01:00.1]} 47... Ne5 {[%clk 0:00:03.6]} 48. Rh4+ {[%clk 0:01:01]} 48... Kg6
{[%clk 0:00:03.2]} 49. Re4 {[%clk 0:01:01.9]} 49... Kf5 {[%clk 0:00:02.5]} 50.
Rd4 {[%clk 0:01:02.2]} 50... a5 {[%clk 0:00:02.6]} 51. f4 {[%clk 0:01:01.9]}
51... Ng4 {[%clk 0:00:02.1]} 52. bxa5 {[%clk 0:01:00.8]} 52... Rxc5 {[%clk
0:00:01.1]} 53. Rd2 {[%clk 0:01:01.7]} 53... Rxa5 {[%clk 0:00:01.5]} 54. Rb2
{[%clk 0:01:00.8]} 54... Ra3 {[%clk 0:00:02]} 55. Rb5+ {[%clk 0:00:59.5]} 55...
Ke4 {[%clk 0:00:02.3]} 56. Rb4+ {[%clk 0:00:59.8]} 56... Kf5 {[%clk 0:00:02.5]}
57. Rb5+ {[%clk 0:00:59.3]} 57... Ke4 {[%clk 0:00:02.7]} 58. Rg5 {[%clk
0:00:59.9]} 58... Ne3+ {[%clk 0:00:02.3]} 59. Kh3 {[%clk 0:00:58.5]} 59... Nf5
{[%clk 0:00:03.2]} 60. Rg8 {[%clk 0:00:56.9]} 60... Nd4 {[%clk 0:00:03.9]} 61.
Re8+ {[%clk 0:00:56.3]} 61... Kf3 {[%clk 0:00:04.2]} 62. f5 {[%clk 0:00:55.2]}
62... Kf2 {[%clk 0:00:03.1]} 63. f6 {[%clk 0:00:51.3]} 63... Rxg3+ {[%clk
0:00:02.8]} 64. Kh4 {[%clk 0:00:52.2]} 64... Nf5+ {[%clk 0:00:02.2]} 65. Kh5
{[%clk 0:00:51.5]} 65... Rf3 {[%clk 0:00:01.3]} 66. f7 {[%clk 0:00:49.1]} 66...
Ng7+ {[%clk 0:00:01.1]} 67. Kg6 {[%clk 0:00:48.8]} 1-0